bitfinex/quotes_SOLUSD_20250301
["timestamp","ask_amount","ask_price","bid_price","bid_amount"]
[1740817234152,20.64964886,143.8,143.76,6.223]
[1740817234563,20.64964886,143.8,143.76,0.063]
[1740817235251,2.0,143.79,143.76,0.063]
[1740817235548,7.5341109,143.79,143.76,0.063]
[1740817235747,44.21404886,143.77,143.76,0.063]
[1740817236670,46.21404886,143.77,143.76,0.063]
[1740817238758,46.21404886,143.77,143.65,0.063]
[1740817238759,20.0,143.73,143.65,0.063]
[1740817238964,20.0,143.73,143.65,6.243]
[1740817239667,23.48314386,143.73,143.65,11.8119]
[1740817239976,29.04934386,143.73,143.65,11.8119]
[1740817241151,18.64964886,143.72,143.65,11.8119]
[1740817242248,5.5667,143.71,143.65,11.8119]
[1740817242452,23.48314386,143.73,143.65,11.8119]
[1740817242453,3.48314386,143.73,143.65,11.8119]
[1740817243074,80.7,143.72,143.65,11.8119]
[1740817245776,80.7,143.72,143.65,25.7346]
[1740817247387,80.7,143.76,143.66,28.81814886]
[1740817247551,80.7,143.76,143.7,19.4849]
[1740817247752,80.7,143.76,143.71,7.6838]
[1740817248488,80.7,143.8,143.75,20.0]
[1740817248791,80.7,143.8,143.76,6.18]
[1740817249871,80.7,143.8,143.77,5.5644]
[1740817255185,80.7,143.83,143.77,21.0361]
[1740817258688,86.2621,143.83,143.77,1.5606]
[1740817259402,18.64964886,143.82,143.76,6.18]
[1740817259887,18.64964886,143.82,143.77,6.16]
[1740817260073,20.64964886,143.82,143.77,6.16]
[1740817260283,18.64964886,143.8,143.77,6.16]
[1740817260478,80.7,143.79,143.77,6.16]
[1740817261482,104.91364886,143.78,143.77,6.16]
[1740817261686,104.91364886,143.78,143.71,0.063]
[1740817261687,99.34964886,143.77,143.71,0.063]
[1740817261877,80.7,143.76,143.72,6.16]
[1740817262677,80.7,143.76,143.71,6.223]
[1740817263375,5.5652,143.75,143.71,6.223]
[1740817264872,9.0243411,143.75,143.71,6.223]
[1740817266881,80.7,143.74,143.71,6.223]
[1740817267075,80.7,143.73,143.71,6.223]
[1740817272681,86.266,143.73,143.71,6.223]
[1740817272883,80.7,143.72,143.71,6.223]
[1740817275802,80.7,143.72,143.71,0.063]
[1740817277617,86.2663,143.72,143.71,0.063]
[1740817278713,20.0,143.72,143.71,0.063]
[1740817278893,38.64964886,143.72,143.71,0.063]
[1740817279601,20.0,143.72,143.71,0.063]
[1740817280906,25.5663,143.72,143.71,0.063]
[1740817281887,44.21594886,143.72,143.71,0.063]
[1740817283711,44.24594886,143.72,143.71,0.063]
[1740817287121,0.03,143.72,143.71,0.063]
[1740817294823,0.0001,143.72,143.71,109.1753]
[1740817295122,0.03,143.76,143.73,2.0]
[1740817295323,0.03,143.76,143.74,6.2]
[1740817295505,0.03,143.76,143.75,5.5652]
[1740817295710,0.0001,143.76,143.75,25.78564886]
[1740817295902,0.0001,143.76,143.75,32.32714886]
[1740817297632,0.03,143.84,143.76,18.64964886]
[1740817298529,0.03,143.84,143.8,20.64964886]
[1740817298830,0.03,143.84,143.82,18.64964886]
[1740817299717,0.03,143.84,143.83,5.5621]
[1740817303528,0.03,143.87,143.86,20.0]
[1740817303905,0.03,143.87,143.86,26.24]
[1740817305028,0.03,143.87,143.86,31.8009]
[1740817310053,0.03,143.87,143.86,6.24]
[1740817311938,0.03,143.87,143.86,6.22]
[1740817312916,0.03,143.91,143.9,38.64964886]
[1740817313221,0.03,143.91,143.9,119.64964886]
[1740817314631,0.03,143.91,143.9,125.20904886]
[1740817314827,0.03,143.91,143.9,106.5594]
[1740817316016,0.03,143.91,143.9,418.5594]
[1740817318117,0.03,143.91,143.9,106.5594]
[1740817321049,0.03,143.91,143.9,418.5594]
[1740817321441,0.03,143.91,143.9,106.5594]
[1740817325137,0.03,143.91,143.9,92.7594]
[1740817326249,0.03,143.91,143.9,6.2]
[1740817347554,0.03,143.91,143.9,15.87474364]
[1740817349862,0.075909,143.91,143.9,34.5243925]
[1740817350067,0.075909,143.91,143.9,36.1811925]
[1740817351254,0.075909,143.91,143.9,38.1811925]
[1740817352860,9e-06,143.91,143.9,44.6408925]
[1740817353047,9e-06,143.91,143.9,125.6408925]
[1740817353857,9e-06,143.91,143.9,123.6408925]
[1740817354064,9e-06,143.91,143.9,125.6408925]
[1740817354666,9e-06,143.91,143.9,437.6408925]
[1740817355167,9e-06,143.91,143.9,125.6408925]
[1740817356763,9e-06,143.91,143.9,123.6408925]
[1740817358263,9e-06,143.91,143.9,435.6408925]
[1740817358468,9e-06,143.91,143.9,435.7038925]
[1740817358644,9e-06,143.91,143.9,437.7038925]
[1740817360775,9e-06,143.91,143.9,125.7038925]
[1740817361090,9e-06,143.93,143.91,20.64964886]
[1740817362063,9e-06,143.93,143.92,9.67394364]
[1740817363974,9e-06,143.93,143.92,321.67394364]
[1740817364877,9e-06,143.93,143.92,402.67394364]
[1740817365675,0.03,144.03,143.95,22.0]
[1740817365872,0.03,144.03,143.99,20.0]
[1740817366055,80.73,144.02,143.99,20.0]
[1740817367563,80.73,144.02,143.99,25.5559]
[1740817368172,80.73,144.02,143.97,5.5567]
[1740817368381,80.73,144.02,143.96,11.717]
[1740817368579,80.7,144.01,143.96,323.717]
[1740817370777,80.7,144.01,143.96,11.717]
[1740817373681,80.7,144.01,143.97,312.0]
[1740817373864,80.7,144.01,143.98,5.5563]
[1740817374880,80.7,144.01,143.97,5.5566]
[1740817377972,80.7,144.01,143.97,9.64676589]
[1740817379104,80.7,144.01,143.97,5.5566]
[1740817380860,80.7,144.01,143.96,11.7169]
[1740817382565,80.7,144.01,143.96,25.6096]
[1740817383285,0.03,144.02,143.97,18.64964886]
[1740817384188,0.03,144.02,143.98,4.09075572]
[1740817384683,0.03,144.02,143.99,5.5559]
[1740817386087,0.03,144.02,143.96,20.0527]
[1740817386278,0.03,144.02,143.97,5.5567]
[1740817386981,0.03,144.02,143.99,20.0]
[1740817388263,0.03,144.02,143.99,25.5559]
[1740817388465,0.03,144.02,143.99,29.64951861]
[1740817389895,0.03,144.02,143.99,341.64951861]
[1740817390193,0.0001,144.0,143.99,360.29916747]
[1740817390494,80.7,144.16,144.07,20.0]
[1740817390796,10.8923813,144.19,144.11,22.0]
[1740817390968,8.13e-05,144.19,144.18,2.0]
[1740817391168,8.13e-05,144.19,144.18,25.04964886]
[1740817391386,8.13e-05,144.19,144.18,6.4]
[1740817391601,8.13e-05,144.19,144.12,128.2367598]
[1740817391895,80.7000813,144.19,144.13,6.42]
[1740817392083,80.7,144.18,144.13,6.42]
[1740817392285,80.7,144.18,144.14,5.5501]
[1740817392602,80.7,144.18,144.13,6.42]
[1740817392788,80.7,144.17,144.13,11.43682858]
[1740817393171,80.7,144.16,144.13,11.43682858]
[1740817393477,80.7,144.15,144.13,11.43682858]
[1740817393883,7.5486,144.18,144.13,11.43682858]
[1740817393884,80.7,144.14,144.13,11.43682858]
[1740817394193,2.0,144.17,144.13,6.42]
[1740817394870,5.5493,144.16,144.13,6.42]
[1740817396290,5.549,144.17,144.13,6.42]
[1740817396492,6.573,144.19,144.13,6.42]
[1740817397485,12.1212,144.19,144.13,6.42]
[1740817397800,18.64964886,144.18,144.13,6.42]
[1740817397974,12.1212,144.19,144.13,6.42]
[1740817398174,80.7,144.18,144.13,6.42]
[1740817398398,5.549,144.17,144.13,6.42]
[1740817398980,80.7,144.16,144.13,6.42]
[1740817399200,80.7,144.15,144.13,6.42]
[1740817399388,80.7,144.14,144.13,6.42]
[1740817400604,86.2501,144.14,144.13,6.42]
[1740817402211,2.0,144.12,144.07,6.44]
[1740817402374,80.7,144.11,144.01,10.76062964]
[1740817402579,87.0734,144.1,144.02,6.46]
[1740817402780,80.7,144.09,144.02,6.46]
[1740817403003,80.7,144.09,144.02,22.23045061]
[1740817404280,5.5524,144.08,144.02,22.23045061]
[1740817404499,80.7,144.07,144.02,17.22062964]
[1740817405203,80.7,144.07,144.02,6.46]
[1740817405904,20.2527,144.1,144.02,6.46]
[1740817405905,80.7,144.09,144.02,6.46]
[1740817406092,80.7,144.09,144.02,12.0145]
[1740817406399,80.7,144.09,144.04,5.554]
[1740817406603,80.7,144.13,144.04,5.554]
[1740817406912,80.7,144.12,144.07,20.0]
[1740817407089,80.7,144.12,144.08,6.48]
[1740817407285,80.7,144.15,144.08,6.48]
[1740817408401,80.7,144.15,144.09,5.552]
[1740817410695,80.7,144.15,144.12,20.0]
[1740817411683,80.7,144.15,144.12,26.46]
[1740817412683,80.7,144.14,144.04,250.15232964]
[1740817412883,80.7,144.14,144.05,12.0136]
[1740817412884,80.7,144.13,144.05,12.0136]
[1740817413090,80.7,144.13,144.08,20.0]
[1740817413290,80.7,144.12,144.08,20.0]
[1740817413810,62.07386759,144.17,144.09,20.0]
[1740817414110,56.52476759,144.16,144.1,6.48]
[1740817415011,56.52476759,144.16,144.1,12.0313]
[1740817418590,56.52476759,144.16,144.1,25.9105]
[1740817419206,56.52476759,144.16,144.13,20.0]
[1740817419807,56.52476759,144.16,144.1,25.9105]
[1740817423723,56.52476759,144.16,144.1,12.0313]
[1740817423894,56.52476759,144.16,144.06,139.6239]
[1740817423895,6.0566,144.14,144.09,6.44]
[1740817424703,6.0566,144.14,144.08,6.44]
[1740817425112,5.5505,144.13,144.08,6.44]
[1740817425310,56.52476759,144.12,144.08,6.44]
[1740817425507,5.5505,144.13,144.08,6.44]
[1740817425715,72.39816759,144.16,144.08,11.9922]
[1740817425716,56.52476759,144.16,144.08,11.9922]
[1740817425914,56.52476759,144.15,144.08,11.9922]
[1740817426403,56.52476759,144.15,144.08,25.8733]
[1740817427320,56.52476759,144.15,144.09,5.01126954]
[1740817429526,62.07286759,144.2,144.11,18.64964886]
[1740817429734,62.07286759,144.2,144.11,99.64964886]
[1740817429941,56.52476759,144.2,144.11,81.0]
[1740817430229,7.2087,144.19,144.12,5.01126954]
[1740817430424,7.2087,144.19,144.13,6.46]
[1740817430649,0.03,144.15,144.13,6.46]
[1740817431610,0.03,144.15,144.13,11.47795806]
[1740817434422,0.03,144.15,144.13,6.46]
[1740817436137,0.03,144.15,144.13,12.0103]
[1740817436817,0.03,144.15,144.14,5.02668318]
[1740817437833,0.03,144.15,144.14,9.10027834]
[1740817438139,0.03,144.15,144.14,14.65037834]
[1740817438726,0.03,144.15,144.14,9.10027834]
[1740817439528,0.03,144.15,144.14,5.02668318]
[1740817440247,0.03,144.15,144.13,12.0104]
[1740817442428,0.03,144.15,144.14,5.02804235]
[1740817443347,0.03,144.15,144.14,10.57814235]
[1740817444758,56.52476759,144.18,144.14,9.10175377]
[1740817444928,56.52476759,144.17,144.14,9.10175377]
[1740817445255,56.52476759,144.17,144.14,4.07371142]
[1740817445950,56.52476759,144.17,144.13,12.0104]
[1740817449754,0.03,144.19,144.14,5.03202513]
[1740817449937,0.03,144.19,144.15,18.64964886]
[1740817450142,0.03,144.19,144.15,99.64964886]
[1740817450336,0.03,144.19,144.15,101.64964886]
[1740817450531,0.03,144.19,144.16,19.4227]
[1740817451061,0.03,144.19,144.17,23.68167399]
[1740817451235,0.03,144.19,144.18,6.44]
[1740817451958,0.03,144.19,144.18,11.9886]
[1740817452259,0.03,144.19,144.18,17.02062513]
[1740817452663,0.03,144.19,144.18,21.09493752]
[1740817453460,3.9571614,144.23,144.18,21.09493752]
[1740817454345,3.9571614,144.23,144.19,5.03202513]
[1740817456042,3.9571614,144.23,144.2,5.5478]
[1740817457963,3.9571614,144.23,144.19,5.03202513]
[1740817458485,3.9571614,144.23,144.19,10.58002513]
[1740817461259,3.9571614,144.23,144.19,24.45052513]
[1740817462347,3.9571614,144.23,144.2,5.03202513]
[1740817463473,3.9571614,144.23,144.19,10.58002513]
[1740817464560,3.9571614,144.23,144.19,5.548]
[1740817466183,3.9571614,144.23,144.19,10.55769021]
[1740817466378,3.9571614,144.23,144.19,10.62069021]
[1740817466587,3.9871614,144.23,144.19,10.62069021]
[1740817466972,3.9871614,144.23,144.19,24.49119021]
[1740817467684,3.9871614,144.23,144.2,5.00969021]
[1740817468479,3.9871614,144.23,144.21,5.5474]
[1740817470489,3.9871614,144.23,144.19,13.9335]
[1740817470660,3.9871614,144.23,144.19,19.4817]
[1740817471286,3.9871614,144.23,144.2,5.01100575]
[1740817472879,3.9871614,144.23,144.21,5.5474]
[1740817476483,3.9871614,144.23,144.21,7.0675]
[1740817477693,3.9871614,144.23,144.21,5.5474]
[1740817478389,3.9871614,144.23,144.19,13.9335]
[1740817478600,3.9871614,144.23,144.19,19.4817]
[1740817479114,3.9871614,144.23,144.19,5.6112]
[1740817479609,3.9871614,144.23,144.2,5.01853314]
[1740817480197,5.5452,144.27,144.2,5.01853314]
[1740817480398,56.52476759,144.26,144.2,5.01853314]
[1740817480707,56.52476759,144.26,144.2,10.56613314]
[1740817481991,56.52476759,144.26,144.21,5.01853314]
[1740817481992,57.42310459,144.26,144.21,5.01853314]
[1740817482305,57.42310459,144.26,144.22,5.547]
[1740817482516,57.42310459,144.26,144.23,6.38]
[1740817483720,0.898337,144.26,144.23,11.9265]
[1740817484414,0.898337,144.26,144.23,6.38]
[1740817486318,0.898337,144.26,144.23,11.9266]
[1740817488920,0.898337,144.26,144.23,106.7933]
[1740817489501,0.898337,144.26,144.24,5.01459899]
[1740817489991,56.52476759,144.25,144.24,5.01459899]
[1740817490417,56.52476759,144.25,144.23,6.38]
[1740817491494,56.52476759,144.25,144.23,4.38]
[1740817492824,56.52476759,144.24,144.2,5.02114483]
[1740817493126,56.52476759,144.23,144.2,11.42114483]
[1740817493498,56.52476759,144.22,144.21,5.02114483]
[1740817493700,58.14296759,144.22,144.21,5.02114483]
[1740817493923,1.6182,144.22,144.21,5.02114483]
[1740817494222,1.6182,144.22,144.21,4.92114483]
[1740817494611,7.1652,144.22,144.21,4.92114483]
[1740817495095,7.1652,144.22,144.19,0.063]
[1740817495524,80.7,144.21,144.19,0.063]
[1740817495723,80.7,144.2,144.19,0.063]
[1740817496527,86.2478,144.2,144.19,0.063]
[1740817498935,5.5478,144.2,144.19,0.063]
[1740817499222,28.19744886,144.2,144.19,0.063]
[1740817499425,20.64964886,144.19,144.13,6.38]
[1740817499808,5.5486,144.18,144.12,6.423]
[1740817500532,21.4201,144.18,144.12,6.423]
[1740817500713,1.6659,144.17,144.12,0.063]
[1740817500921,27.15044886,144.16,144.12,0.063]
[1740817501230,6.5008,144.16,144.12,0.063]
[1740817501935,5.5497,144.15,144.12,0.063]
[1740817503641,80.7,144.14,144.12,0.063]
[1740817503810,86.2505,144.13,144.12,0.063]
[1740817504312,106.90014886,144.13,144.12,0.063]
[1740817504506,28.20014886,144.13,144.12,0.063]
[1740817504935,29.86604886,144.13,144.12,0.063]
[1740817505112,35.31652912,144.13,144.12,0.063]
[1740817505312,35.31652912,144.13,144.12,0.0001]
[1740817506310,80.7,144.12,144.09,0.063]
[1740817506515,80.7,144.11,144.09,0.063]
[1740817506716,86.12392975,144.11,144.09,0.063]
[1740817507119,18.64964886,144.1,144.09,0.063]
[1740817507324,27.15044886,144.1,144.09,0.063]
[1740817507625,27.15044886,144.1,144.04,0.063]
[1740817507939,18.64964886,144.08,144.04,0.063]
[1740817508344,5.5528,144.07,144.04,0.063]
[1740817508639,7.2187,144.07,144.04,0.063]
[1740817508932,18.64964886,144.06,144.04,0.063]
[1740817509513,20.64964886,144.06,144.04,0.063]
[1740817509942,22.64964886,144.06,144.04,0.063]
[1740817510241,2.0,144.05,144.04,0.063]
[1740817510414,9.5536,144.05,144.04,0.063]
[1740817510945,34.36934886,144.05,144.04,0.063]
[1740817514032,32.36934886,144.05,144.04,0.063]
[1740817514235,34.36934886,144.05,144.04,0.063]
[1740817514542,6.1661,144.05,144.04,0.063]
[1740817514844,7.20675146,144.07,144.04,0.063]
[1740817514845,5.20675146,144.07,144.04,0.063]
[1740817515145,2.0,144.05,144.04,0.063]
[1740817515349,4.0,144.05,144.04,0.063]
[1740817515532,2.0,144.01,143.97,0.063]
[1740817515842,80.7,144.0,143.97,0.063]
[1740817516141,80.7,143.99,143.97,0.063]
[1740817520240,80.7,143.99,143.97,5.6197]
[1740817520565,56.50218366,143.99,143.97,0.063]
[1740817524059,56.50218366,143.98,143.97,0.063]
[1740817524268,5.556,143.99,143.97,0.063]
[1740817525072,24.20514886,144.0,143.97,0.063]
[1740817527667,80.7,143.99,143.97,0.063]
[1740817533172,46.82387015,143.99,143.97,0.063]
[1740817534251,46.82387015,143.98,143.97,0.063]
[1740817536659,18.64964886,143.98,143.97,0.063]
[1740817536873,26.20594886,143.98,143.97,0.063]
[1740817539882,28.20594886,143.98,143.97,0.063]
[1740817540979,22.0,143.95,143.94,0.063]
[1740817541284,18.64964886,143.93,143.88,6.3]
[1740817543083,5.5586,143.92,143.88,6.3]
[1740817544165,2.0,143.9,143.87,0.063]
[1740817544383,22.64964886,143.9,143.87,0.063]
[1740817544683,20.64964886,143.9,143.87,0.063]
[1740817545052,40.64964886,143.9,143.87,0.063]
[1740817545257,26.20904886,143.9,143.87,0.063]
[1740817545968,22.4712,143.92,143.87,0.063]
[1740817545969,5.5589,143.92,143.87,0.063]
[1740817546286,2.0,143.98,143.9,6.32]
[1740817546465,5.5563,143.98,143.9,6.32]
[1740817546783,2.0,143.97,143.9,6.32]
[1740817547087,5.559,143.91,143.87,0.063]
[1740817547666,20.0,143.9,143.87,0.063]
[1740817547982,5.557,143.96,143.88,6.36]
[1740817548184,20.0,143.93,143.88,6.36]
[1740817548680,80.7,143.92,143.88,6.36]
[1740817549380,18.64964886,143.9,143.87,5.07015031]
[1740817549585,20.64964886,143.9,143.87,5.07015031]
[1740817549781,18.64964886,143.9,143.87,5.07015031]
[1740817549978,18.64964886,143.9,143.88,0.063]
[1740817550675,28.20904886,143.9,143.88,0.063]
[1740817550879,28.20904886,143.9,143.89,0.0001]
[1740817553869,24.20904886,143.9,143.89,0.0001]
[1740817554071,5.5594,143.9,143.89,0.0001]
[1740817555185,24.20904886,143.9,143.89,0.0001]
[1740817555387,5.5594,143.9,143.89,0.0001]
[1740817556101,25.5594,143.9,143.89,0.0001]
[1740817556314,20.0,143.9,143.89,0.0001]
[1740817556677,5.559,143.91,143.89,0.0001]
[1740817557090,5.5887,143.92,143.89,0.0001]
[1740817557694,20.0,143.9,143.89,0.0001]
[1740817557999,38.64964886,143.9,143.89,0.0001]
[1740817559175,44.20904886,143.9,143.89,0.0001]
[1740817560190,25.5594,143.9,143.89,0.0001]
[1740817560374,5.5591,143.91,143.89,0.0001]
[1740817560584,5.5887,143.92,143.89,0.0001]
[1740817560970,0.03,143.92,143.89,0.0001]
[1740817561586,0.03,143.92,143.89,1.5034]
[1740817562089,0.03,143.9,143.89,1.5034]
[1740817562489,0.03,143.9,143.89,7.0632]
[1740817564203,0.03,143.92,143.89,39.61234886]
[1740817564389,80.7,143.98,143.9,18.64964886]
[1740817564706,80.7,143.98,143.92,18.64964886]
[1740817564879,80.7,143.98,143.93,6.36]
[1740817565079,0.03,143.99,143.93,6.36]
[1740817566413,0.03,143.99,143.93,11.9182]
[1740817569917,0.03,143.99,143.93,92.9182]
[1740817571011,0.03,143.99,143.95,5.5574]
[1740817572311,0.03,143.99,143.96,1.6154]
[1740817572486,0.03,143.99,143.96,89.2671]
[1740817572684,0.03,143.99,143.97,18.64964886]
[1740817573013,0.03,143.99,143.98,6.34]
[1740817573307,0.03,143.99,143.98,24.98964886]
[1740817574009,0.03,144.05,144.01,20.0]
[1740817574400,0.03,144.05,144.01,25.5548]
[1740817574794,0.03,144.05,144.01,5.5548]
[1740817575305,0.03,144.05,143.99,5.5555]
[1740817576907,0.03,144.05,143.98,92.8962]
[1740817577097,80.7,144.04,143.98,11.8962]
[1740817578617,80.7,144.04,143.98,323.8962]
[1740817578831,80.7,144.04,143.98,11.8962]
[1740817581128,80.7,144.03,143.99,6.32]
[1740817581629,80.7,144.02,143.99,6.32]
[1740817581810,80.7,144.01,143.99,6.32]
[1740817585007,80.7,144.04,143.99,6.32]
[1740817585335,80.7,144.04,143.99,11.8758]
[1740817586742,80.7,144.04,143.99,11.9388]
[1740817588235,86.254,144.04,143.99,6.383]
[1740817589739,100.139,144.04,143.99,6.383]
[1740817590524,100.139,144.04,143.99,5.883]
[1740817590723,80.7,144.03,143.99,0.063]
[1740817590925,80.7,144.03,143.99,6.343]
[1740817591744,5.5547,144.02,143.99,6.343]
[1740817591954,80.7,144.01,143.99,0.063]
[1740817593858,5.5555,144.0,143.99,0.063]
[1740817595051,80.7,144.01,143.99,0.063]
[1740817595855,86.2552,144.01,143.99,0.063]
[1740817596739,80.7,144.0,143.99,0.063]
[1740817597560,20.64964886,144.0,143.99,0.063]
[1740817597933,20.64964886,143.99,143.94,6.28]
[1740817598264,101.34964886,143.99,143.94,6.28]
[1740817598559,80.7,143.98,143.94,6.28]
[1740817598757,80.7,143.97,143.94,6.28]
[1740817598947,80.7,143.96,143.94,6.28]
[1740817600350,86.2574,143.96,143.94,6.28]
[1740817601569,80.7,143.96,143.94,6.28]
[1740817603746,86.2571,143.96,143.9,5.5593]
[1740817603948,80.7,143.95,143.91,6.26]
[1740817606476,80.7,143.95,143.91,11.8189]
[1740817608451,80.7,143.94,143.89,6.2282]
[1740817608644,5.5576,143.95,143.9,6.26]
[1740817608846,80.7,143.98,143.9,6.26]
[1740817608847,19.4484,143.97,143.9,6.26]
[1740817609065,80.7,143.96,143.9,6.26]
[1740817609274,80.7,143.95,143.9,6.26]
[1740817609652,80.7,144.03,143.94,1.5654]
[1740817609880,80.7,144.03,143.95,6.34]
[1740817610873,80.7,144.03,143.96,10.56924132]
[1740817611556,0.03,143.99,143.98,20.0]
[1740817612180,0.03,143.99,143.98,31.9536]
[1740817612677,0.03,143.99,143.98,11.9536]
[1740817613777,0.03,143.99,143.98,16.96451232]
[1740817614858,0.03,143.99,143.98,10.56721232]
[1740817616066,0.03,143.99,143.98,5.5563]
[1740817617184,0.03,143.99,143.98,6.34]
[1740817618581,0.03,143.99,143.98,11.8963]
[1740817620887,0.03,143.99,143.98,16.91091452]
[1740817621789,0.03,143.99,143.98,11.35461452]
[1740817622690,0.03,143.99,143.98,11.8963]
[1740817623093,0.03,143.99,143.98,6.34]
[1740817624898,0.03,143.99,143.96,5.01848206]
[1740817625095,0.03,143.99,143.97,6.3]
[1740817625762,0.03,143.99,143.97,6.363]
[1740817627672,0.03,143.99,143.97,0.063]
[1740817628086,80.7,143.98,143.97,0.063]
[1740817628799,86.2563,143.98,143.97,0.063]
[1740817629180,5.5563,143.98,143.97,0.063]
[1740817629791,24.20594886,143.98,143.97,0.063]
[1740817631975,25.74794886,143.98,143.97,0.063]
[1740817633599,27.74794886,143.98,143.97,0.063]
[1740817635401,34.17314886,143.98,143.97,0.063]
[1740817639403,18.64964886,143.94,143.9,6.363]
[1740817639810,18.64964886,143.94,143.9,0.063]
[1740817641684,5.5582,143.93,143.9,0.063]
[1740817642412,80.7,143.92,143.9,0.063]
[1740817643308,80.7,143.91,143.89,0.0001]
[1740817646014,86.2591,143.91,143.89,0.0001]
[1740817647203,80.7,143.9,143.89,0.0001]
[1740817647391,19.4541,143.93,143.89,0.0001]
[1740817647896,18.64964886,143.92,143.89,0.0001]
[1740817649495,5.559,143.91,143.89,0.0001]
[1740817656326,15.4154,143.96,143.89,0.0001]
[1740817656625,24.20704886,143.95,143.89,0.0001]
[1740817657209,104.90704886,143.95,143.89,0.0001]
[1740817660344,80.7,143.98,143.9,2.0]
[1740817660631,0.03,143.99,143.93,20.0]
[1740817660829,0.03,143.99,143.96,1.66]
[1740817661027,0.03,143.99,143.97,6.32]
[1740817665720,20.03,143.99,143.97,6.32]
[1740817666738,25.5861,143.99,143.97,6.32]
[1740817667036,99.34964886,143.98,143.93,6.32]
[1740817667236,80.7,143.97,143.93,6.32]
[1740817667733,80.7,143.97,143.91,13.586]
[1740817667936,80.7,143.97,143.92,6.3]
[1740817668850,106.90664886,143.96,143.89,0.0001]
[1740817669026,80.7,143.95,143.89,0.0001]
[1740817670535,18.64964886,143.93,143.89,0.0001]
[1740817670742,80.7,143.92,143.89,0.0001]
[1740817672643,5.559,143.91,143.89,0.0001]
[1740817673944,80.7,143.9,143.89,0.0001]
[1740817674143,18.64964886,143.93,143.89,0.0001]
[1740817674330,86.2586,143.92,143.89,0.0001]
[1740817674530,80.7,143.92,143.89,0.0001]
[1740817676752,99.34964886,143.91,143.89,0.0001]
[1740817676957,20.0,143.88,143.87,0.0629]
[1740817678749,25.5601,143.88,143.87,0.0629]
[1740817679447,2.0,143.91,143.87,6.3829]
[1740817679645,9.559,143.91,143.87,0.0629]
[1740817679843,20.0,143.88,143.87,0.0629]
[1740817680927,25.5601,143.88,143.87,0.0629]
[1740817683352,8.85985159,143.92,143.87,0.0629]
[1740817683554,5.5591,143.91,143.87,0.0629]
[1740817683959,86.2591,143.91,143.87,0.0629]
[1740817685858,24.20914886,143.9,143.87,0.0629]
[1740817686040,18.64964886,143.89,143.87,0.0629]
[1740817686244,80.7,143.88,143.87,0.0629]
[1740817688040,86.2601,143.88,143.87,0.0629]
[1740817689468,80.7,143.88,143.87,0.0629]
[1740817698063,80.73,143.88,143.87,0.0629]
[1740817700151,86.2901,143.88,143.87,0.0629]
[1740817703457,104.93974886,143.88,143.87,0.0629]
[1740817703769,24.23974886,143.88,143.87,0.0629]
[1740817706080,0.03,143.88,143.87,0.0629]
[1740817707783,0.03,143.88,143.87,6.3429]
[1740817709581,0.03,143.88,143.87,11.9034]